[Event "CZE-ch U12 2020"]
[Site "Kouty nad Desnou"]
[Date "2020.03.09"]
[Round "3.3"]
[White "Hladky, Tadeas"]
[Black "Setina, Vaclav"]
[Result "1/2-1/2"]
[ECO "B31"]
[WhiteElo "1773"]
[BlackElo "1507"]
[Annotator "NA RC"]
[PlyCount "118"]
[EventDate "2020.03.07"]
[EventCountry "CZE"]
[SourceTitle "playchess.com"]
[Source "ChessBase"]
[SourceQuality "1"]
[TimeControl "5400+30"]

1. e4 {[%emt 0:00:00]} c5 {[%emt 0:00:44]} 2. Nf3 {[%emt 0:00:00]} Nc6 {[%emt 0:00:40]} 3. Bb5 {[%emt 0:00:00]} g6 {[%emt 0:00:11]} 4. O-O {[%emt 0:00:01]} Bg7 {[%emt 0:00:24]} 5. Re1 {[%emt 0:00:08]} Nf6 {[%emt 0:01:30]} 6. e5 {[%emt 0:00:12]} Nd5 {[%emt 0:01:02]} 7. Nc3 {[%emt 0:00:11]} Nc7 {[%emt 0:04:01]} 8. Bxc6 {[%emt 0:00:57]} dxc6 {[%emt 0:00:25]} 9. d3 {[%emt 0:00:34]} O-O {[%emt 0:04:33]} 10. h3 {[%emt 0:01:21]} Nd5 {[%emt 0:02:45]} 11. Ne4 {[%emt 0:00:40]} Qb6 {[%emt 0:01:36]} 12. a4 {[%emt 0:02:30]} a5 {[%emt 0:04:00]} 13. Qe2 {[%emt 0:08:01]} Bf5 {[%emt 0:03:49]} 14. Ng3 {[%emt 0:01:47]} Be6 {[%emt 0:01:56]} 15. h4 {[%emt 0:13:56]} Bg4 {[%emt 0:15:15]} 16. Nf1 {[%emt 0:09:59]} e6 {[%emt 0:05:21]} 17. N1h2 {[%emt 0:00:22]} Bxf3 {[%emt 0:00:40]} 18. Nxf3 {[%emt 0:00:10]} Rfd8 {[%emt 0:02:46]} 19. Bg5 {[%emt 0:03:45]} Rd7 {[%emt 0:01:12]} 20. b3 {[%emt 0:08:13]} Ne7 {[%emt 0:07:42]} 21. Bxe7 {[%emt 0:05:36]} Rxe7 {[%emt 0:01:11]} 22. h5 {[%emt 0:01:00]} Rae8 {[%emt 0:05:54]} 23. Nd2 {[%emt 0:01:40]} f5 {[%emt 0:01:30]} 24. Nc4 {[%emt 0:03:31]} Qc7 {[%emt 0:02:02]} 25. hxg6 {[%emt 0:01:01]} hxg6 {[%emt 0:00:34]} 26. Qe3 {[%emt 0:00:31]} Bf8 {[%emt 0:05:08]} 27. g3 {[%emt 0:07:21]} Rg7 {[%emt 0:07:00]} 28. f4 {[%emt 0:05:50]} b5 {[%emt 0:06:28]} 29. Nd2 {[%emt 0:02:30]} Be7 {[%emt 0:02:20]} 30. Nf3 {[%emt 0:00:32]} Kf7 {[%emt 0:01:33]} 31. Ng5+ {[%emt 0:03:06]} Bxg5 32. fxg5 {[%emt 0:00:07]} Rh7 {[%emt 0:00:48]} 33. Kg2 {[%emt 0:02:31]} c4 {[%emt 0:01:20]} 34. Rh1 {[%emt 0:00:34]} Reh8 {[%emt 0:01:25]} 35. Rh6 {[%emt 0:01:33]} Rxh6 {[%emt 0:00:42]} 36. gxh6 {[%emt 0:00:02]} cxb3 {[%emt 0:01:48]} 37. cxb3 {[%emt 0:00:21]} Rc8 {[%emt 0:02:52]} 38. Rh1 {[%emt 0:04:58]} Rh8 {[%emt 0:02:16]} 39. Rh4 {[%emt 0:03:53]} g5 {[%emt 0:02:05]} 40. Qxg5 Qxe5 {[%emt 0:00:21]} 41. Qh5+ {[%emt 0:01:33]} Ke7 {[%emt 0:00:57]} 42. h7 {[%emt 0:01:20]} Qb2+ {[%emt 0:01:28]} 43. Kh3 {[%emt 0:01:20]} Qc1 {[%emt 0:00:29]} 44. Qf3 {[%emt 0:01:10]} bxa4 {[%emt 0:00:33]} 45. bxa4 {[%emt 0:00:26]} Qc5 {[%emt 0:00:32]} 46. d4 {[%emt 0:01:21]} Qd5 {[%emt 0:00:32]} 47. Qxd5 {[%emt 0:02:07]} cxd5 {[%emt 0:00:04]} 48. Kg2 {[%emt 0:00:04]} e5 {[%emt 0:00:07]} 49. dxe5 {[%emt 0:00:18]} Ke6 {[%emt 0:00:17]} 50. Rh5 {[%emt 0:00:41]} Kxe5 {[%emt 0:00:28]} 51. g4 {[%emt 0:00:07]} Kf4 {[%emt 0:00:26]} 52. g5 {[%emt 0:01:11]} Ke5 {[%emt 0:01:30]} 53. Rh1 {[%emt 0:01:07]} f4 {[%emt 0:00:30]} 54. g6 {[%emt 0:02:06]} Kf6 {[%emt 0:00:17]} 55. Rh5 {[%emt 0:02:40]} Kxg6 {[%emt 0:00:15]} 56. Rxd5 {[%emt 0:00:05]} Rxh7 {[%emt 0:00:30]} 57. Rxa5 {[%emt 0:00:04]} Kf6 {[%emt 0:00:58]} 58. Kf3 {[%emt 0:00:16]} Ke6 {[%emt 0:00:21]} 59. Kxf4 {[%emt 0:00:10]} Kd6 {[%emt 0:00:16]} 1/2-1/2

[Event "CZE-ch U12 2020"]
[Site "Kouty nad Desnou"]
[Date "2020.03.09"]
[Round "3.4"]
[White "Zelba, Lukas"]
[Black "Jasso, Matej"]
[Result "1-0"]
[ECO "A05"]
[WhiteElo "1727"]
[BlackElo "1582"]
[Annotator "NA RC"]
[PlyCount "107"]
[EventDate "2020.03.07"]
[EventCountry "CZE"]
[SourceTitle "playchess.com"]
[Source "ChessBase"]
[SourceQuality "1"]
[TimeControl "5400+30"]

1. Nf3 Nf6 {[%emt 0:00:00]} 2. c4 {[%emt 0:00:12]} g6 {[%emt 0:00:00]} 3. Nc3 {[%emt 0:00:20]} Bg7 {[%emt 0:00:09]} 4. g3 {[%emt 0:01:11]} c6 {[%emt 0:01:00]} 5. Bg2 {[%emt 0:02:21]} d5 {[%emt 0:01:02]} 6. d4 {[%emt 0:03:29]} O-O {[%emt 0:00:29]} 7. O-O {[%emt 0:00:25]} Bf5 {[%emt 0:02:49]} 8. Qb3 {[%emt 0:00:59]} Qb6 {[%emt 0:01:48]} 9. c5 {[%emt 0:00:41]} Qc7 {[%emt 0:03:01]} 10. Bf4 {[%emt 0:01:26]} Qc8 {[%emt 0:00:08]} 11. Rfe1 {[%emt 0:04:39]} Nbd7 {[%emt 0:01:56]} 12. Nh4 {[%emt 0:00:51]} Be6 {[%emt 0:00:18]} 13. Rad1 {[%emt 0:01:35]} h6 {[%emt 0:02:28]} 14. Nf3 {[%emt 0:02:39]} Nh5 {[%emt 0:03:11]} 15. Qc2 {[%emt 0:09:47]} Nxf4 {[%emt 0:00:35]} 16. gxf4 {[%emt 0:00:05]} Qc7 {[%emt 0:01:54]} 17. Ne5 {[%emt 0:00:31]} Nxe5 {[%emt 0:00:56]} 18. fxe5 {[%emt 0:01:23]} Qd7 {[%emt 0:01:14]} 19. e4 {[%emt 0:08:32]} Bh3 {[%emt 0:01:17]} 20. exd5 {[%emt 0:00:26]} Bxg2 {[%emt 0:00:21]} 21. e6 {[%emt 0:00:18]} Qc7 {[%emt 0:01:51]} 22. Kxg2 {[%emt 0:01:40]} Qf4 {[%emt 0:01:25]} 23. Re3 {[%emt 0:03:26]} fxe6 {[%emt 0:00:37]} 24. dxe6 {[%emt 0:02:28]} Rf5 {[%emt 0:01:31]} 25. Re4 {[%emt 0:08:11]} Qf3+ {[%emt 0:01:18]} 26. Kg1 {[%emt 0:01:35]} Raf8 {[%emt 0:01:26]} 27. Rd2 {[%emt 0:02:41]} Rg5+ {[%emt 0:00:19]} 28. Kf1 {[%emt 0:00:10]} Qg2+ {[%emt 0:00:48]} 29. Ke2 {[%emt 0:01:48]} Qf3+ {[%emt 0:03:44]} 30. Kf1 {[%emt 0:00:12]} Qh3+ {[%emt 0:03:28]} 31. Ke2 {[%emt 0:08:13]} Rg1 {[%emt 0:00:07]} 32. f4 {[%emt 0:03:18]} Bxd4 {[%emt 0:06:50]} 33. Rexd4 {[%emt 0:00:40]} Rf1 {[%emt 0:04:35]} 34. Qxg6+ {[%emt 0:00:15]} Kh8 {[%emt 0:00:19]} 35. Qg3 {[%emt 0:00:08]} Qxg3 {[%emt 0:07:24]} 36. hxg3 {[%emt 0:00:18]} Rh1 {[%emt 0:00:18]} 37. Rd8 {[%emt 0:00:50]} Rh2+ {[%emt 0:00:17]} 38. Ke3 {[%emt 0:00:07]} Rxd8 {[%emt 0:00:17]} 39. Rxd8+ {[%emt 0:00:24]} Kg7 {[%emt 0:00:07]} 40. Ne2 {[%emt 0:00:10]} Kf6 {[%emt 0:00:07]} 41. Rd7 {[%emt 0:00:07]} Kxe6 {[%emt 0:00:18]} 42. Rxb7 {[%emt 0:00:09]} Rh5 {[%emt 0:00:11]} 43. Nd4+ {[%emt 0:00:51]} Kd5 {[%emt 0:00:33]} 44. Rxe7 {[%emt 0:00:31]} Rh3 {[%emt 0:00:13]} 45. Re5+ {[%emt 0:00:15]} Kc4 {[%emt 0:00:02]} 46. Ne2 {[%emt 0:00:10]} h5 {[%emt 0:00:16]} 47. f5 {[%emt 0:00:18]} h4 {[%emt 0:00:14]} 48. Re4+ {[%emt 0:00:13]} Kxc5 {[%emt 0:00:08]} 49. Rxh4 {[%emt 0:00:05]} Rxh4 {[%emt 0:00:14]} 50. gxh4 {[%emt 0:00:07]} Kd5 {[%emt 0:00:05]} 51. h5 {[%emt 0:00:18]} Ke5 {[%emt 0:00:16]} 52. h6 {[%emt 0:00:16]} Kf6 {[%emt 0:00:01]} 53. Nd4 {[%emt 0:00:15]} c5 {[%emt 0:00:11]} 54. Ne6 {[%emt 0:00:05]} 1-0

[Event "CZE-ch U12 2020"]
[Site "Kouty nad Desnou"]
[Date "2020.03.09"]
[Round "3.5"]
[White "Soucek, Jan"]
[Black "Nguyen, Thai Dang Vi"]
[Result "1-0"]
[ECO "D35"]
[WhiteElo "1872"]
[BlackElo "1510"]
[Annotator "NA RC"]
[PlyCount "151"]
[EventDate "2020.03.07"]
[EventCountry "CZE"]
[SourceTitle "playchess.com"]
[Source "ChessBase"]
[SourceQuality "1"]
[TimeControl "5400+30"]

{[%evp 8,151,5,0,19,32767,32767,13,21,14,30,32767,32767,32767,32767,32767,27,19,36,24,20,20,28,37,32,8,34,12,48,28,39,16,31,14,26,-16,25,16,29,10,37,0,32767,0,19,32767,72,20,76,58,63,17,69,30,65,-17,46,16,39,39,131,104,137,95,92,97,122,32,37,33,22,32,36,35,29,31,35,0,64,53,81,33,119,86,189,104,93,59,87,49,48,14,33,0,0,0,0,0,0,-7,0,0,67,22,87,0,206,0,143,86,189,198,32767,32767,32767,540,483,310,32767,32767,32767,32767,264,32767,32767,32767,32767,32767,32767,32767,32767,32767,32767,32767,32767,32767,32767,32767,32767,32767,29992,29993,29993,29992,29992,29993]} 1. d4 {[%emt 0:00:57]} d5 {[%emt 0:00:00]} 2. c4 {[%emt 0:00:09]} e6 {[%emt 0:00:00]} 3. Nc3 {[%emt 0:00:10]} Nf6 {[%emt 0:00:00]} 4. cxd5 {[%emt 0:00:05]} exd5 {[%emt 0:00:26]} 5. Bg5 {[%emt 0:00:05]} Be7 {[%emt 0:00:24]} 6. e3 {[%emt 0:00:23]} h6 {[%emt 0:00:54]} 7. Bh4 {[%emt 0:00:09]} c6 {[%emt 0:00:37]} 8. Bd3 {[%emt 0:00:11]} Nbd7 {[%emt 0:00:55]} 9. Qc2 {[%emt 0:00:09]} O-O {[%emt 0:01:22]} 10. Nge2 {[%emt 0:00:12]} Re8 {[%emt 0:01:57]} 11. O-O {[%emt 0:00:33] 11.f3 is the fancy move.} a6 {[%emt 0:06:59] D36: Queen's Gambit Declined: Exchange Variation: Main line (5 Bg5 c6 6 Qc2).} 12. Rad1 {[%emt 0:21:13] [#]} Qc7 $146 {[%emt 0:01:35]} ({Predecessor:} 12... b5 13. h3 Bb7 14. Bf5 Nf8 15. f3 Qb6 16. Bf2 c5 17. dxc5 Bxc5 18. Nd4 Ne6 19. Qd2 Nxd4 20. exd4 {0-1 (72) Vernay,C (2341)-Bujisho,B (2417) France 2009}) 13. a3 {[%emt 0:11:09]} Bd6 {[%emt 0:07:15]} 14. Bg3 {[%emt 0:06:03]} Bxg3 {[%emt 0:17:45]} 15. Nxg3 {[%emt 0:00:51]} Nb6 {[%emt 0:02:34]} 16. Nce2 {[%emt 0:20:05]} Bd7 {[%emt 0:08:05]} 17. Nf4 {[%emt 0:10:30]} Rac8 {[%emt 0:01:46]} 18. Rc1 {[%emt 0:02:16]} Rcd8 {[%emt 0:15:44]} 19. Nfh5 {[%emt 0:05:37]} Nxh5 {[%emt 0:01:51]} 20. Nxh5 {[%emt 0:00:09]} Be6 {[%emt 0:06:07]} 21. Ng3 {[%emt 0:03:26]} Nd7 {[%emt 0:00:46]} 22. b4 {[%emt 0:04:09]} Nf6 {[%emt 0:01:37]} 23. Rce1 {[%emt 0:02:16]} Qd7 {[%emt 0:04:32]} 24. Qc3 {[%emt 0:02:35]} Qd6 {[%emt 0:04:01]} 25. Bb1 {[%emt 0:01:55]} Bc8 {[%emt 0:03:24]} 26. f3 {[%emt 0:02:07]} Kf8 {[%emt 0:02:16]} (26... h5 $11) 27. Qd3 {[%emt 0:01:39]} b5 {[%emt 0:04:58]} (27... Re7 $11 {remains equal.}) 28. Rf2 {[%emt 0:01:09]} Re7 {[%emt 0:01:19]} 29. Kh1 {[%emt 0:01:40]} Be6 {[%emt 0:01:34]} 30. Rd2 {[%emt 0:00:29]} Red7 {[%emt 0:00:41]} 31. Qc2 {[%emt 0:01:11]} (31. Kg1 $14) 31... Qc7 (31... a5 $5) 32. Red1 {[%emt 0:00:52]} Qb6 {[%emt 0:02:00]} 33. Ne2 {[%emt 0:01:08]} Ke7 {[%emt 0:01:39]} ({Black should play} 33... a5 $14) 34. h3 {[%emt 0:00:30]} g6 {[%emt 0:01:10]} 35. Ba2 {[%emt 0:00:42]} Bf5 {[%emt 0:00:26]} 36. Qc3 {[%emt 0:00:18]} Rc8 {[%emt 0:00:17]} 37. Bb1 {[%emt 0:00:25]} ({White should play} 37. Rf1 $16) 37... Bxb1 {[%emt 0:00:10]} 38. Rxb1 {[%emt 0:00:01]} Kf8 {[%emt 0:00:28]} 39. Nf4 {[%emt 0:00:34]} Kg7 {[%emt 0:00:19]} 40. Nd3 {[%emt 0:00:15]} Re7 {[%emt 0:00:17]} 41. Re1 {[%emt 0:00:23]} Rce8 {[%emt 0:00:17]} 42. Rde2 {[%emt 0:00:11]} Rd8 {[%emt 0:00:36]} (42... Nh5 $11 43. Kh2 Qc7+ 44. f4 Nf6) 43. Nc5 {[%emt 0:01:23]} Kg8 {[%emt 0:00:51]} 44. Rc1 {[%emt 0:00:36]} Rc7 {[%emt 0:00:22]} ({Black should try} 44... Nh5 $14 45. Qe1 Rde8) 45. Rec2 {[%emt 0:00:28]} Rd6 {[%emt 0:00:22] [#]} (45... Re8 $14) 46. Qe1 {[%emt 0:00:24]} ({White should try} 46. e4 $1 $18 {[%cal Re4e5]} Nh5 47. e5) 46... Re7 {[%emt 0:00:36]} 47. Re2 {[%emt 0:00:21]} Nd7 {[%emt 0:00:28]} 48. Qh4 {[%emt 0:00:28]} g5 {[%emt 0:00:40]} 49. Qe1 {[%emt 0:00:22]} (49. Qg3 $5 {[%cal Rg3d6]} Rg6 50. Nd3 $14) 49... Qa7 {[%emt 0:00:23]} 50. Qd2 {[%emt 0:01:32]} Nxc5 {[%emt 0:00:15]} 51. Rxc5 {[%emt 0:00:12]} Rde6 {[%emt 0:00:10]} 52. Qc1 {[%emt 0:00:34]} Qd7 {[%emt 0:00:16]} 53. Kg1 {[%emt 0:00:22]} Qe8 {[%emt 0:00:24]} 54. Kf2 {[%emt 0:00:10]} Rc7 {[%emt 0:00:13]} ({Better is} 54... Kg7 $11) 55. Rec2 {[%emt 0:00:12]} (55. Rxd5 $16 cxd5 56. Qxc7) 55... Kg7 {[%emt 0:00:26]} (55... Rd6 $11 {keeps the balance.}) 56. R2c3 {[%emt 0:00:17]} ({Better is} 56. Rxd5 $1 $16 Rce7 57. Re5) 56... f5 $2 {[%emt 0:00:31] [#]} (56... Rce7 $11 {and Black has nothing to worry.}) 57. Qd2 $11 {[%emt 0:01:06]} (57. Rxd5 $1 $18 {[%mdl 512]} Qf7 (57... cxd5 58. Rxc7+) 58. Rcc5) 57... Qg6 {[%emt 0:00:16]} (57... Rf7 $11 {keeps the balance.}) 58. Qc2 {[%emt 0:00:45]} h5 {[%emt 0:00:19] [#]} (58... Rd6 $16) 59. Rxd5 $1 {[%emt 0:00:43] Pin} cxd5 {[%emt 0:01:27]} 60. Rxc7+ {[%emt 0:00:07]} Kh6 {[%emt 0:00:11]} 61. Qc5 {[%emt 0:00:35]} Qe8 {[%emt 0:00:59]} 62. Qxd5 {[%emt 0:00:49]} Rxe3 $1 $11 {[%emt 0:00:15] and Black has nothing to worry.} 63. Rc6+ {[%emt 0:00:29]} Kg7 {[%emt 0:00:12]} 64. Rc7+ {[%emt 0:00:28]} Kg6 $2 {[%emt 0:00:31]} 65. Qc6+ {[%emt 0:00:40]} Qe6 {[%emt 0:00:47]} 66. Qc2 {[%emt 0:00:33]} Rxa3 {[%emt 0:00:27]} 67. Rc6 {[%emt 0:00:17]} Re3 {[%emt 0:00:26]} 68. Rxe6+ {[%emt 0:00:13]} Rxe6 {[%emt 0:00:05]} 69. d5 {[%emt 0:00:14]} Re8 {[%emt 0:00:13]} 70. Qc6+ {[%emt 0:00:04]} Kf7 {[%emt 0:00:12]} 71. Qxa6 {[%emt 0:00:16]} Re5 {[%emt 0:00:29]} 72. Qxb5 {[%emt 0:00:05]} Ke7 {[%emt 0:00:13]} 73. Qb7+ {[%emt 0:00:06]} Kd6 {[%emt 0:00:09]} 74. Qc6+ {[%emt 0:00:05]} Ke7 {[%emt 0:00:11]} 75. Qc7+ {[%emt 0:00:05] Double Attack} Kf6 {[%emt 0:00:14]} 76. Qd6+ {[%emt 0:00:01]} 1-0

[Event "CZE-ch U12 2020"]
[Site "Kouty nad Desnou"]
[Date "2020.03.09"]
[Round "3.6"]
[White "Martirosyan, David"]
[Black "Day, Tobias"]
[Result "0-1"]
[ECO "B70"]
[WhiteElo "1522"]
[BlackElo "1837"]
[Annotator "NA"]
[PlyCount "66"]
[EventDate "2020.03.07"]
[EventCountry "CZE"]
[SourceTitle "playchess.com"]
[Source "ChessBase"]
[SourceQuality "1"]
[TimeControl "5400+30"]

{[%evp 8,64,24,17,37,32767,32767,14,32767,32767,7,-6,-3,0,0,-47,0,-52,-55,-56,-8,7,0,4,0,-42,20,0,19,-18,-22,-25,0,8,-3,-39,-28,-297,-335,-334,-342,-667,0,-264,-242,-296,-285,-427,-409,-1495,-2285,-3001,-5773,-29979,-963,-943,-982,-1070,-1407]} 1. e4 {[%emt 0:00:00]} c5 {[%emt 0:00:00]} 2. Nf3 {[%emt 0:00:00]} d6 {[%emt 0:00:00]} 3. d4 {[%emt 0:00:05]} cxd4 {[%emt 0:00:24]} 4. Nxd4 {[%emt 0:00:25]} Nf6 {[%emt 0:00:28]} 5. Nc3 {[%emt 0:00:56]} g6 {[%emt 0:00:10]} 6. g3 {[%emt 0:00:44]} Nc6 {[%emt 0:00:19]} 7. Nde2 {[%emt 0:00:51]} Bd7 {[%emt 0:00:22]} 8. Bg2 {[%emt 0:00:58]} Qc8 {[%emt 0:00:17]} 9. h3 {[%emt 0:06:27]} Bg7 {[%emt 0:00:54]} 10. Nf4 {[%emt 0:04:14] B70: Sicilian Dragon: 6 g3 and 6 Be2 (without a later Be3).} O-O {[%emt 0:05:14]} 11. O-O {[%emt 0:01:54] [#]} Rb8 $146 {[%emt 0:14:59]} ({Predecessor:} 11... e5 $5 {[%cal Re5f4]} 12. Nfe2 (12. Nfd5 Nxd5 13. exd5 Nd4 14. Ne4 Qxc2 15. Bg5 f6 16. Be3 Qxd1 17. Rfxd1 Nf5 {1-0 (39) Kanovsky,D (2286)-Tupy,M (2322) Olomouc 2004}) 12... Bxh3 $15) 12. a4 {[%emt 0:02:39]} e5 {[%emt 0:01:57]} 13. Nfd5 {[%emt 0:10:35]} Bxh3 {[%emt 0:04:34]} 14. Nxf6+ {[%emt 0:01:03]} Bxf6 {[%emt 0:00:40]} 15. Qxd6 {[%emt 0:01:05]} Be7 {[%emt 0:02:20]} 16. Qd2 {[%emt 0:09:12]} (16. Qd3 $11) 16... f6 {[%emt 0:21:24]} ({Black should try} 16... Be6 $15) 17. Nd5 {[%emt 0:03:45]} Rf7 {[%emt 0:04:29]} 18. Qh6 {[%emt 0:04:08]} Bxg2 {[%emt 0:01:47]} 19. Kxg2 {[%emt 0:00:10]} Bf8 {[%emt 0:04:50]} 20. Qh4 {[%emt 0:03:15]} Qe6 {[%emt 0:01:37]} 21. Rh1 {[%emt 0:02:49]} Rd8 {[%emt 0:02:06]} 22. Ra3 $2 {[%emt 0:04:54]} (22. Be3 $11) 22... Bxa3 {[%emt 0:01:50]} 23. bxa3 $1 $11 {[%emt 0:00:36] and White stays safe.} Nd4 {[%emt 0:04:24]} (23... Ne7 24. c4) 24. Rd1 $2 {[%emt 0:02:15]} (24. c4) 24... Nc6 $2 {[%emt 0:11:59]} ({Black should play} 24... Rxd5 $19 25. exd5 Qxd5+ 26. Kh3 h5) 25. Bb2 $2 {[%emt 0:02:43]} h5 {[%emt 0:02:21]} 26. f4 {[%emt 0:02:55]} Kg7 {[%emt 0:00:57]} 27. fxe5 {[%emt 0:03:12]} fxe5 {[%emt 0:00:22]} 28. Nf4 $2 {[%emt 0:02:21]} (28. Qg5) 28... Rxf4 {[%emt 0:00:46]} 29. gxf4 {[%emt 0:05:24]} Rxd1 {[%emt 0:00:18]} 30. fxe5 {[%emt 0:00:37]} Qg4+ {[%emt 0:01:52]} 31. Qxg4 {[%emt 0:02:04]} hxg4 {[%emt 0:00:07]} 32. Kg3 {[%emt 0:00:20]} Kf7 $19 {[%emt 0:00:39]} 33. Kxg4 {[%emt 0:02:31]} Ke6 {[%emt 0:00:11]} 0-1

[Event "CZE-ch U12 2020"]
[Site "Kouty nad Desnou"]
[Date "2020.03.09"]
[Round "3.7"]
[White "Kubin, Tomas Daniel"]
[Black "Veverka, Vladimir"]
[Result "1/2-1/2"]
[ECO "C55"]
[WhiteElo "1484"]
[BlackElo "1656"]
[Annotator "NA"]
[PlyCount "72"]
[EventDate "2020.03.07"]
[EventCountry "CZE"]
[SourceTitle "playchess.com"]
[Source "ChessBase"]
[SourceQuality "1"]
[TimeControl "5400+30"]

1. e4 {[%emt 0:00:00]} e5 {[%emt 0:00:00]} 2. Nf3 {[%emt 0:00:00]} Nc6 {[%emt 0:00:15]} 3. d4 {[%emt 0:00:00]} exd4 {[%emt 0:00:13]} 4. Bc4 {[%emt 0:00:00]} Nf6 {[%emt 0:02:26]} 5. e5 {[%emt 0:00:32]} Ne4 {[%emt 0:00:30]} 6. O-O {[%emt 0:02:24]} Be7 {[%emt 0:01:58]} 7. Re1 {[%emt 0:10:57]} d5 {[%emt 0:01:44]} 8. Bb5 {[%emt 0:05:52]} O-O {[%emt 0:03:47]} 9. Bxc6 {[%emt 0:01:39]} bxc6 {[%emt 0:00:17]} 10. Nxd4 {[%emt 0:01:26]} Bd7 {[%emt 0:01:22]} 11. f3 {[%emt 0:03:27]} Nc5 {[%emt 0:00:59]} 12. Nd2 {[%emt 0:05:49]} Ne6 {[%emt 0:02:49]} 13. N2b3 {[%emt 0:04:12]} c5 {[%emt 0:12:55]} 14. Nxe6 {[%emt 0:04:30]} Bxe6 {[%emt 0:01:13]} 15. c3 {[%emt 0:08:05]} Qd7 {[%emt 0:05:31]} 16. Be3 {[%emt 0:05:07]} Qc6 {[%emt 0:02:25]} 17. Qd2 {[%emt 0:03:04]} Rab8 {[%emt 0:15:33]} 18. Rac1 {[%emt 0:09:49]} Rfd8 {[%emt 0:03:22]} 19. Qc2 {[%emt 0:02:08]} Qb5 {[%emt 0:06:27]} 20. Red1 {[%emt 0:07:37]} d4 {[%emt 0:12:51]} 21. cxd4 {[%emt 0:01:09]} Bxb3 {[%emt 0:00:42]} 22. axb3 {[%emt 0:00:15]} Qxb3 {[%emt 0:01:42]} 23. Qxb3 {[%emt 0:01:53]} Rxb3 24. Bf2 {[%emt 0:01:17]} Rxb2 {[%emt 0:06:16]} 25. dxc5 {[%emt 0:01:25]} Rxd1+ {[%emt 0:04:13]} 26. Rxd1 {[%emt 0:00:07]} g6 {[%emt 0:01:31]} 27. Kf1 {[%emt 0:01:07]} Rc2 {[%emt 0:01:05]} 28. Ra1 {[%emt 0:03:59]} Bxc5 {[%emt 0:00:57]} 29. Bxc5 {[%emt 0:00:13]} Rxc5 {[%emt 0:00:13]} 30. Rxa7 {[%emt 0:00:11]} Rc1+ {[%emt 0:02:34]} 31. Kf2 {[%emt 0:00:42]} Rc2+ {[%emt 0:00:42]} 32. Kg3 {[%emt 0:01:57]} c5 {[%emt 0:01:29]} 33. Ra8+ {[%emt 0:00:58]} Kg7 {[%emt 0:00:08]} 34. Rc8 {[%emt 0:00:08]} c4 {[%emt 0:01:08]} 35. f4 {[%emt 0:01:02]} c3 {[%emt 0:00:43]} 36. Kf3 {[%emt 0:01:52]} Rc1 {[%emt 0:01:32]} 1/2-1/2

[Event "CZE-ch U12 2020"]
[Site "Kouty nad Desnou"]
[Date "2020.03.09"]
[Round "3.8"]
[White "Juhanak, Daniel"]
[Black "Matusik, Ondrej"]
[Result "1/2-1/2"]
[ECO "C07"]
[WhiteElo "1656"]
[BlackElo "1482"]
[Annotator "NA RC"]
[PlyCount "130"]
[EventDate "2020.03.07"]
[EventCountry "CZE"]
[SourceTitle "playchess.com"]
[Source "ChessBase"]
[SourceQuality "1"]
[TimeControl "5400+30"]

1. e4 {[%emt 0:00:00]} e6 {[%emt 0:00:00]} 2. d4 {[%emt 0:00:00]} d5 {[%emt 0:00:02]} 3. Nd2 {[%emt 0:00:38]} c5 {[%emt 0:01:03]} 4. exd5 {[%emt 0:00:42]} Qxd5 {[%emt 0:00:30]} 5. Ngf3 {[%emt 0:00:36]} cxd4 {[%emt 0:00:53]} 6. Bc4 {[%emt 0:00:41]} Qd6 {[%emt 0:01:18]} 7. O-O {[%emt 0:01:04]} Nc6 {[%emt 0:01:20]} 8. Nb3 {[%emt 0:02:10]} Nf6 {[%emt 0:03:50]} 9. Nbxd4 {[%emt 0:02:59]} Bd7 {[%emt 0:02:53]} 10. Re1 {[%emt 0:10:50]} Be7 {[%emt 0:02:59]} 11. Bf1 {[%emt 0:10:33]} O-O {[%emt 0:03:21]} 12. Bg5 {[%emt 0:04:16]} Rfd8 {[%emt 0:04:58]} 13. c3 {[%emt 0:06:03]} a6 {[%emt 0:02:54]} 14. Qc2 {[%emt 0:04:29]} Nxd4 {[%emt 0:05:30]} 15. Nxd4 {[%emt 0:04:03]} Ng4 {[%emt 0:01:55]} 16. Nf3 {[%emt 0:05:30]} Nxh2 {[%emt 0:07:36]} 17. Nxh2 {[%emt 0:09:37]} Bxg5 {[%emt 0:00:21]} 18. Bd3 {[%emt 0:07:20]} h6 {[%emt 0:02:48]} 19. Rad1 {[%emt 0:04:08]} Qb6 {[%emt 0:03:09]} 20. Nf3 {[%emt 0:02:33]} Bf6 {[%emt 0:01:22]} 21. Ne5 {[%emt 0:05:10]} Bxe5 {[%emt 0:03:46]} 22. Rxe5 {[%emt 0:00:49]} Bc6 {[%emt 0:01:35]} 23. b3 {[%emt 0:08:20]} Rd5 {[%emt 0:02:31]} 24. Rxd5 {[%emt 0:01:21]} Bxd5 {[%emt 0:00:11]} 25. Be4 {[%emt 0:01:57]} Rd8 {[%emt 0:06:33]} 26. Bxd5 {[%emt 0:03:19]} Rxd5 {[%emt 0:00:20]} 27. Rxd5 {[%emt 0:01:08]} exd5 {[%emt 0:00:08]} 28. Qf5 {[%emt 0:01:29]} Qe6 {[%emt 0:01:11]} 29. Qf3 {[%emt 0:00:30]} b5 {[%emt 0:06:32]} 30. a4 {[%emt 0:00:59]} bxa4 {[%emt 0:01:24]} 31. bxa4 {[%emt 0:00:19]} Qc6 {[%emt 0:00:30]} 32. Qd3 {[%emt 0:00:51]} Qxa4 {[%emt 0:02:15]} 33. Qxd5 {[%emt 0:00:09]} Qa1+ {[%emt 0:00:18]} 34. Kh2 {[%emt 0:00:45]} Qxc3 {[%emt 0:00:19]} 35. Qa8+ {[%emt 0:00:44]} Kh7 {[%emt 0:00:58]} 36. Qxa6 {[%emt 0:00:18]} Qe5+ {[%emt 0:00:23]} 37. g3 {[%emt 0:01:03]} Qe6 {[%emt 0:00:53]} 38. Qd3+ {[%emt 0:00:36]} g6 {[%emt 0:01:23]} 39. Qf3 {[%emt 0:00:25]} Kg7 {[%emt 0:00:56]} 40. Qc3+ {[%emt 0:00:33]} Qf6 {[%emt 0:00:14]} 41. Qe3 {[%emt 0:00:14]} Qb2 {[%emt 0:03:33]} 42. Kg2 {[%emt 0:00:18]} Qa1 {[%emt 0:01:49]} 43. Qe4 {[%emt 0:00:59]} Qc3 {[%emt 0:00:53]} 44. Qf4 {[%emt 0:00:37]} g5 {[%emt 0:03:34]} 45. Qe4 {[%emt 0:00:22]} Qc5 {[%emt 0:02:31]} 46. Qf3 {[%emt 0:00:25]} Qe5 {[%emt 0:00:50]} 47. Qd3 {[%emt 0:00:47]} Qe7 {[%emt 0:02:47]} 48. Qd4+ {[%emt 0:00:33]} f6 {[%emt 0:00:08]} 49. Kh2 {[%emt 0:00:30]} h5 {[%emt 0:04:40]} 50. Kg2 {[%emt 0:00:34]} Qb7+ {[%emt 0:01:52]} 51. Kh2 {[%emt 0:00:22]} Qc7 {[%emt 0:00:45]} 52. Kg2 {[%emt 0:00:18]} Qe7 {[%emt 0:04:12]} 53. Kh2 {[%emt 0:00:46]} Kg6 {[%emt 0:00:25]} 54. Kg2 {[%emt 0:00:37]} Qe6 {[%emt 0:01:10]} 55. Kh2 {[%emt 0:00:34]} f5 {[%emt 0:00:34]} 56. Qb4 {[%emt 0:00:33]} Qf6 {[%emt 0:02:07]} 57. Kh3 {[%emt 0:00:27]} g4+ {[%emt 0:01:49]} 58. Kg2 {[%emt 0:00:27]} h4 {[%emt 0:00:33]} 59. gxh4 {[%emt 0:00:16]} Qxh4 {[%emt 0:00:08]} 60. Qd6+ {[%emt 0:00:29]} Qf6 {[%emt 0:00:41]} 61. Qd5 {[%emt 0:00:29]} Kh5 {[%emt 0:01:00]} 62. Qg8 {[%emt 0:00:43]} Qc6+ {[%emt 0:01:15]} 63. Kg1 {[%emt 0:00:33]} Qc1+ {[%emt 0:01:05]} 64. Kg2 {[%emt 0:00:25]} Qc6+ {[%emt 0:00:22]} 65. Kg1 {[%emt 0:00:09]} Qc1+ {[%emt 0:01:14]} 1/2-1/2